[Event "Titled Tuesday Blitz October 19 2021"]
[White "Vokhidov, Shamsiddin"]
[Black "Borsuk, Konstantin"]
[WhiteFideId "14204223"]
[BlackFideId "14113406"]
[WhiteElo "2616"]
[BlackElo "2397"]
[Result "0-1"]
[Round "06"]
[TimeControl "180+1"]
[Date "2021.10.19"]
[WhiteClock "0:00:03"]
[BlackClock "0:00:03"]

1. e4 {[%clk 0:03:00]}  e6 {[%clk 0:02:59]} 2. d4 {[%clk 0:03:01]}  d5 {[%clk 0:03:00]} 3. Nc3 {[%clk 0:03:01]}  Bb4 {[%clk 0:02:59]} 4. Ne2 {[%clk 0:03:01]}  Nc6 {[%clk 0:02:58]} 5. a3 {[%clk 0:03:01]}  Ba5 {[%clk 0:02:58]} 6. e5 {[%clk 0:03:01]}  f6 {[%clk 0:02:56]} 7. b4 {[%clk 0:02:53]}  Bb6 {[%clk 0:02:56]} 8. Na4 {[%clk 0:02:54]}  fxe5 {[%clk 0:02:54]} 9. dxe5 {[%clk 0:02:54]}  Nge7 {[%clk 0:02:45]} 10. Nxb6 {[%clk 0:02:52]}  axb6 {[%clk 0:02:45]} 11. Ng3 {[%clk 0:02:47]}  O-O {[%clk 0:02:36]} 12. Bd3 {[%clk 0:02:46]}  Nxb4 {[%clk 0:02:23]} 13. Be2 {[%clk 0:02:28]}  Ng6 {[%clk 0:02:14]} 14. O-O {[%clk 0:02:26]}  Nxe5 {[%clk 0:02:11]} 15. Bb2 {[%clk 0:02:10]}  Nbc6 {[%clk 0:02:09]} 16. f4 {[%clk 0:02:08]}  Nc4 {[%clk 0:02:07]} 17. Bxc4 {[%clk 0:02:07]}  dxc4 {[%clk 0:02:07]} 18. Qe2 {[%clk 0:02:03]}  Qd5 {[%clk 0:01:59]} 19. Rad1 {[%clk 0:02:02]}  Qb5 {[%clk 0:01:58]} 20. Rb1 {[%clk 0:01:53]}  Qc5+ {[%clk 0:01:58]} 21. Kh1 {[%clk 0:01:53]}  c3 {[%clk 0:01:58]} 22. Ne4 {[%clk 0:01:53]}  Qe7 {[%clk 0:01:10]} 23. Nxc3 {[%clk 0:01:52]}  Bd7 {[%clk 0:01:09]} 24. Nb5 {[%clk 0:01:45]}  Be8 {[%clk 0:01:06]} 25. Rbe1 {[%clk 0:01:41]}  Rf5 {[%clk 0:01:00]} 26. g4 {[%clk 0:01:34]}  Rc5 {[%clk 0:00:49]} 27. c4 {[%clk 0:01:30]}  Na5 {[%clk 0:00:46]} 28. Nd4 {[%clk 0:01:17]}  Nxc4 {[%clk 0:00:42]} 29. Nxe6 {[%clk 0:01:16]}  Nxb2 {[%clk 0:00:35]} 30. Qxb2 {[%clk 0:01:07]}  Bc6+ {[%clk 0:00:33]} 31. Kg1 {[%clk 0:01:06]}  Rb5 {[%clk 0:00:26]} 32. Qd4 {[%clk 0:01:00]}  Rd5 {[%clk 0:00:22]} 33. Qc3 {[%clk 0:00:56]}  Rxa3 {[%clk 0:00:21]} 34. Qb2 {[%clk 0:00:53]}  Rad3 {[%clk 0:00:20]} 35. Qa2 {[%clk 0:00:41]}  Qa3 {[%clk 0:00:17]} 36. Qe2 {[%clk 0:00:32]}  Rd2 {[%clk 0:00:15]} 37. Qc4 {[%clk 0:00:31]}  Rg2+ {[%clk 0:00:08]} 38. Kh1 {[%clk 0:00:27]}  Qb2 {[%clk 0:00:05]} 39. Qe4 {[%clk 0:00:11]}  Rdd2 {[%clk 0:00:03]} 40. Qe5 {[%clk 0:00:03]}  Rxh2+ {[%clk 0:00:03]} 41. Kg1 {[%clk 0:00:03]}  Rdg2# {[%clk 0:00:03]} 0-1


[Site "https://www.chess.com"]

[Event "Titled Tuesday Blitz October 19 2021"]
[White "Yilmaz, Mustafa"]
[Black "Perez Gormaz, Matias"]
[WhiteFideId "6302718"]
[BlackFideId "3406342"]
[WhiteElo "2518"]
[BlackElo "2352"]
[Result "1-0"]
[Round "06"]
[TimeControl "180+1"]
[Date "2021.10.19"]
[WhiteClock "0:00:07"]
[BlackClock "0:00:02"]

1. d4 {[%clk 0:03:00]}  d5 {[%clk 0:02:51]} 2. c4 {[%clk 0:03:01]}  e6 {[%clk 0:02:52]} 3. Nc3 {[%clk 0:03:01]}  a6 {[%clk 0:02:52]} 4. cxd5 {[%clk 0:03:01]}  exd5 {[%clk 0:02:53]} 5. Qb3 {[%clk 0:02:59]}  Bd6 {[%clk 0:02:47]} 6. Nf3 {[%clk 0:02:40]}  c6 {[%clk 0:02:43]} 7. e4 {[%clk 0:02:36]}  dxe4 {[%clk 0:02:40]} 8. Ng5 {[%clk 0:02:27]}  Qe7 {[%clk 0:02:40]} 9. Bc4 {[%clk 0:02:25]}  Nh6 {[%clk 0:02:41]} 10. O-O {[%clk 0:02:23]}  b5 {[%clk 0:02:40]} 11. Be2 {[%clk 0:02:18]}  Bf5 {[%clk 0:02:30]} 12. Re1 {[%clk 0:02:11]}  O-O {[%clk 0:02:26]} 13. h3 {[%clk 0:01:29]}  Nd7 {[%clk 0:02:21]} 14. Bf3 {[%clk 0:01:26]}  Nf6 {[%clk 0:01:57]} 15. Ngxe4 {[%clk 0:01:25]}  Nxe4 {[%clk 0:01:57]} 16. Bxh6 {[%clk 0:01:23]}  Qh4 {[%clk 0:01:20]} 17. Nxe4 {[%clk 0:01:18]}  Qxh6 {[%clk 0:01:17]} 18. Rac1 {[%clk 0:01:16]}  Bf4 {[%clk 0:01:12]} 19. Rc5 {[%clk 0:01:13]}  Be6 {[%clk 0:01:08]} 20. Qc2 {[%clk 0:01:06]}  Bd5 {[%clk 0:01:06]} 21. Qd1 {[%clk 0:00:33]}  Rad8 {[%clk 0:01:03]} 22. a3 {[%clk 0:00:30]}  Bb8 {[%clk 0:00:58]} 23. Rc3 {[%clk 0:00:28]}  Ba7 {[%clk 0:00:37]} 24. Rd3 {[%clk 0:00:28]}  Bc4 {[%clk 0:00:35]} 25. Rd2 {[%clk 0:00:28]}  Bd5 {[%clk 0:00:36]} 26. Re3 {[%clk 0:00:24]}  Bb8 {[%clk 0:00:35]} 27. Re1 {[%clk 0:00:17]}  Ba7 {[%clk 0:00:35]} 28. Re3 {[%clk 0:00:15]}  Bb8 {[%clk 0:00:35]} 29. Re1 {[%clk 0:00:11]}  Qf4 {[%clk 0:00:35]} 30. g3 {[%clk 0:00:10]}  Qh6 {[%clk 0:00:36]} 31. Bg2 {[%clk 0:00:10]}  Ba7 {[%clk 0:00:35]} 32. Nc3 {[%clk 0:00:09]}  Be6 {[%clk 0:00:25]} 33. Bxc6 {[%clk 0:00:05]}  Bxh3 {[%clk 0:00:22]} 34. Bg2 {[%clk 0:00:06]}  Bg4 {[%clk 0:00:20]} 35. f3 {[%clk 0:00:03]}  Be6 {[%clk 0:00:13]} 36. Ne4 {[%clk 0:00:03]}  Bc4 {[%clk 0:00:12]} 37. b4 {[%clk 0:00:03]}  f5 {[%clk 0:00:11]} 38. Nc5 {[%clk 0:00:03]}  Bb8 {[%clk 0:00:11]} 39. f4 {[%clk 0:00:04]}  Qg6 {[%clk 0:00:11]} 40. Qf3 {[%clk 0:00:04]}  Kh8 {[%clk 0:00:11]} 41. Red1 {[%clk 0:00:04]}  Bd5 {[%clk 0:00:11]} 42. Qc3 {[%clk 0:00:04]}  Bxg2 {[%clk 0:00:08]} 43. Kxg2 {[%clk 0:00:05]}  Bxf4 {[%clk 0:00:08]} 44. Rf2 {[%clk 0:00:05]}  Bb8 {[%clk 0:00:07]} 45. Re1 {[%clk 0:00:05]}  f4 {[%clk 0:00:07]} 46. Ne6 {[%clk 0:00:05]}  fxg3 {[%clk 0:00:06]} 47. Rxf8+ {[%clk 0:00:05]}  Rxf8 {[%clk 0:00:02]} 48. Nxf8 {[%clk 0:00:06]}  Qf5 {[%clk 0:00:02]} 49. Qf3 {[%clk 0:00:05]}  Qc2+ {[%clk 0:00:02]} 50. Re2 {[%clk 0:00:05]}  Qc8 {[%clk 0:00:02]} 51. Ne6 {[%clk 0:00:06]}  h6 {[%clk 0:00:01]} 52. Qf8+ {[%clk 0:00:06]}  Qxf8 {[%clk 0:00:01]} 53. Nxf8 {[%clk 0:00:07]}  g5 {[%clk 0:00:02]} 54. Nd7 {[%clk 0:00:07]}  Bd6 {[%clk 0:00:02]} 55. Re6 {[%clk 0:00:07]} 1-0


[Site "https://www.chess.com"]

[Event "Titled Tuesday Blitz October 19 2021"]
[White "atbenina64"]
[Black "Matsenko, Andrei"]
[BlackFideId "24146501"]
[WhiteElo "2571"]
[BlackElo "2179"]
[Result "0-1"]
[Round "06"]
[TimeControl "180+1"]
[Date "2021.10.19"]
[WhiteClock "0:00:03"]
[BlackClock "0:01:53"]

1. e4 {[%clk 0:03:00]}  c6 {[%clk 0:02:59]} 2. d4 {[%clk 0:02:58]}  d5 {[%clk 0:03:00]} 3. e5 {[%clk 0:02:55]}  Bf5 {[%clk 0:03:00]} 4. Nf3 {[%clk 0:02:55]}  e6 {[%clk 0:03:00]} 5. Be2 {[%clk 0:02:55]}  Ne7 {[%clk 0:03:01]} 6. O-O {[%clk 0:02:55]}  Nd7 {[%clk 0:03:01]} 7. Nh4 {[%clk 0:02:55]}  Bg6 {[%clk 0:03:02]} 8. Nd2 {[%clk 0:02:48]}  Nf5 {[%clk 0:03:02]} 9. Nxg6 {[%clk 0:02:48]}  hxg6 {[%clk 0:03:03]} 10. Nf3 {[%clk 0:02:49]}  Be7 {[%clk 0:03:03]} 11. c3 {[%clk 0:02:49]}  Rc8 {[%clk 0:03:00]} 12. g3 {[%clk 0:02:49]}  c5 {[%clk 0:03:00]} 13. Kg2 {[%clk 0:02:50]}  cxd4 {[%clk 0:02:51]} 14. cxd4 {[%clk 0:02:51]}  a6 {[%clk 0:02:50]} 15. h4 {[%clk 0:02:40]}  Qc7 {[%clk 0:02:48]} 16. Bd3 {[%clk 0:02:37]}  Qb6 {[%clk 0:02:46]} 17. Bxf5 {[%clk 0:02:24]}  gxf5 {[%clk 0:02:47]} 18. Be3 {[%clk 0:02:21]}  Nb8 {[%clk 0:02:47]} 19. Rc1 {[%clk 0:02:20]}  Nc6 {[%clk 0:02:47]} 20. a3 {[%clk 0:02:16]}  Qxb2 {[%clk 0:02:46]} 21. Rb1 {[%clk 0:02:16]}  Qxa3 {[%clk 0:02:47]} 22. Rxb7 {[%clk 0:02:16]}  Nd8 {[%clk 0:02:46]} 23. Ra7 {[%clk 0:02:13]}  Nc6 {[%clk 0:02:45]} 24. Rb7 {[%clk 0:02:13]}  Nd8 {[%clk 0:02:44]} 25. Ra7 {[%clk 0:02:13]}  a5 {[%clk 0:02:44]} 26. Bg5 {[%clk 0:01:53]}  Bxg5 {[%clk 0:02:42]} 27. Nxg5 {[%clk 0:01:54]}  Qb4 {[%clk 0:02:40]} 28. Qe2 {[%clk 0:01:44]}  Qb6 {[%clk 0:02:37]} 29. Ra6 {[%clk 0:01:41]}  Qxd4 {[%clk 0:02:37]} 30. Qb5+ {[%clk 0:01:40]}  Ke7 {[%clk 0:02:25]} 31. Qxa5 {[%clk 0:01:22]}  Qxe5 {[%clk 0:02:22]} 32. Ra7+ {[%clk 0:01:20]}  Kf6 {[%clk 0:02:22]} 33. Re1 {[%clk 0:01:13]}  Qd6 {[%clk 0:02:21]} 34. Qa1+ {[%clk 0:01:00]}  Kg6 {[%clk 0:02:20]} 35. Nf3 {[%clk 0:00:50]}  f6 {[%clk 0:02:18]} 36. Nd4 {[%clk 0:00:44]}  Rc4 {[%clk 0:02:16]} 37. Ra6 {[%clk 0:00:40]}  Qxa6 {[%clk 0:02:12]} 38. Qxa6 {[%clk 0:00:39]}  Rxd4 {[%clk 0:02:13]} 39. Qd6 {[%clk 0:00:37]}  Nf7 {[%clk 0:02:11]} 40. Qxe6 {[%clk 0:00:36]}  Re4 {[%clk 0:02:12]} 41. Rxe4 {[%clk 0:00:36]}  dxe4 {[%clk 0:02:12]} 42. g4 {[%clk 0:00:31]}  Nh6 {[%clk 0:02:10]} 43. g5 {[%clk 0:00:21]}  Ng4 {[%clk 0:02:06]} 44. Kg3 {[%clk 0:00:22]}  Ra8 {[%clk 0:02:03]} 45. Kf4 {[%clk 0:00:21]}  Ra5 {[%clk 0:02:01]} 46. Qe8+ {[%clk 0:00:20]}  Kh7 {[%clk 0:01:59]} 47. Qh5+ {[%clk 0:00:19]}  Kg8 {[%clk 0:02:00]} 48. Qe8+ {[%clk 0:00:20]}  Kh7 {[%clk 0:02:00]} 49. Qh5+ {[%clk 0:00:05]}  Nh6 {[%clk 0:01:54]} 50. gxh6 {[%clk 0:00:03]}  g6 {[%clk 0:01:54]} 51. Qe2 {[%clk 0:00:03]}  Ra3 {[%clk 0:01:53]} 0-1


[Site "https://www.chess.com"]

[Event "Titled Tuesday Blitz October 19 2021"]
[White "Bologan, Victor"]
[Black "Aloma Vidal, Robert"]
[WhiteFideId "13900048"]
[BlackFideId "2260409"]
[WhiteElo "2511"]
[BlackElo "2435"]
[Result "1-0"]
[Round "07"]
[TimeControl "180+1"]
[Date "2021.10.19"]
[WhiteClock "0:00:25"]
[BlackClock "0:00:14"]

1. e4 {[%clk 0:03:00]}  e5 {[%clk 0:02:56]} 2. Nf3 {[%clk 0:02:59]}  Nf6 {[%clk 0:02:56]} 3. Nxe5 {[%clk 0:02:58]}  d6 {[%clk 0:02:57]} 4. Nf3 {[%clk 0:02:58]}  Nxe4 {[%clk 0:02:57]} 5. Nc3 {[%clk 0:02:58]}  Nf6 {[%clk 0:02:58]} 6. d4 {[%clk 0:02:58]}  g6 {[%clk 0:02:58]} 7. d5 {[%clk 0:02:55]}  Bg7 {[%clk 0:02:57]} 8. Qe2+ {[%clk 0:02:54]}  Qe7 {[%clk 0:02:52]} 9. Qxe7+ {[%clk 0:02:53]}  Kxe7 {[%clk 0:02:52]} 10. Bc4 {[%clk 0:02:48]}  Nbd7 {[%clk 0:02:30]} 11. O-O {[%clk 0:02:43]}  Nb6 {[%clk 0:02:26]} 12. Bb3 {[%clk 0:02:43]}  h6 {[%clk 0:01:53]} 13. a4 {[%clk 0:02:39]}  Nbd7 {[%clk 0:01:41]} 14. a5 {[%clk 0:02:27]}  a6 {[%clk 0:01:39]} 15. Re1+ {[%clk 0:02:22]}  Kd8 {[%clk 0:01:39]} 16. Be3 {[%clk 0:02:19]}  Ng4 {[%clk 0:01:29]} 17. Bd4 {[%clk 0:02:19]}  Bxd4 {[%clk 0:01:29]} 18. Nxd4 {[%clk 0:02:18]}  Nc5 {[%clk 0:01:22]} 19. Bc4 {[%clk 0:02:07]}  Ne5 {[%clk 0:01:20]} 20. Bf1 {[%clk 0:02:06]}  g5 {[%clk 0:01:15]} 21. f3 {[%clk 0:01:59]}  Ncd7 {[%clk 0:01:07]} 22. Kf2 {[%clk 0:01:45]}  Nf6 {[%clk 0:01:07]} 23. g3 {[%clk 0:01:41]}  h5 {[%clk 0:00:55]} 24. h4 {[%clk 0:01:13]}  gxh4 {[%clk 0:00:54]} 25. gxh4 {[%clk 0:01:12]}  Rg8 {[%clk 0:00:47]} 26. Be2 {[%clk 0:01:05]}  Bh3 {[%clk 0:00:42]} 27. Rg1 {[%clk 0:01:00]}  Ke7 {[%clk 0:00:28]} 28. Rg5 {[%clk 0:00:58]}  Ng6 {[%clk 0:00:19]} 29. Rh1 {[%clk 0:00:44]}  Bd7 {[%clk 0:00:19]} 30. b4 {[%clk 0:00:36]}  Kf8 {[%clk 0:00:20]} 31. Bd3 {[%clk 0:00:33]}  Ne5 {[%clk 0:00:19]} 32. Bf5 {[%clk 0:00:33]}  Be8 {[%clk 0:00:18]} 33. Rhg1 {[%clk 0:00:32]}  c5 {[%clk 0:00:17]} 34. dxc6 {[%clk 0:00:31]}  bxc6 {[%clk 0:00:17]} 35. Be4 {[%clk 0:00:29]}  Nc4 {[%clk 0:00:15]} 36. Bxc6 {[%clk 0:00:26]}  Bxc6 {[%clk 0:00:13]} 37. Nxc6 {[%clk 0:00:26]}  Rc8 {[%clk 0:00:14]} 38. Rxg8+ {[%clk 0:00:25]}  Nxg8 {[%clk 0:00:14]} 39. Rxg8+ {[%clk 0:00:25]} 1-0


[Site "https://www.chess.com"]

[Event "Titled Tuesday Blitz October 19 2021"]
[White "Erdogdu, Mert"]
[Black "Derraugh, Geordie"]
[WhiteFideId "6301495"]
[BlackFideId "2603950"]
[WhiteElo "2485"]
[BlackElo "2116"]
[Result "1-0"]
[Round "07"]
[TimeControl "180+1"]
[Date "2021.10.19"]
[WhiteClock "0:00:39"]
[BlackClock "0:00:08"]

1. e4 {[%clk 0:03:00]}  c5 {[%clk 0:02:58]} 2. Nf3 {[%clk 0:03:01]}  d6 {[%clk 0:02:57]} 3. d4 {[%clk 0:03:01]}  cxd4 {[%clk 0:02:58]} 4. Nxd4 {[%clk 0:03:01]}  Nf6 {[%clk 0:02:58]} 5. Nc3 {[%clk 0:03:01]}  a6 {[%clk 0:02:59]} 6. Be3 {[%clk 0:03:01]}  e5 {[%clk 0:02:58]} 7. Nb3 {[%clk 0:03:02]}  Be6 {[%clk 0:02:57]} 8. f3 {[%clk 0:03:02]}  Be7 {[%clk 0:02:57]} 9. Qd2 {[%clk 0:03:03]}  Nbd7 {[%clk 0:02:56]} 10. O-O-O {[%clk 0:03:03]}  b5 {[%clk 0:02:56]} 11. g4 {[%clk 0:03:03]}  Nb6 {[%clk 0:02:55]} 12. g5 {[%clk 0:03:03]}  Nh5 {[%clk 0:02:56]} 13. Kb1 {[%clk 0:03:02]}  O-O {[%clk 0:02:50]} 14. Rg1 {[%clk 0:03:01]}  Na4 {[%clk 0:02:46]} 15. Nd5 {[%clk 0:02:56]}  Bxd5 {[%clk 0:02:34]} 16. exd5 {[%clk 0:02:41]}  Rc8 {[%clk 0:02:29]} 17. Bh3 {[%clk 0:02:31]}  Rc4 {[%clk 0:02:18]} 18. Bg4 {[%clk 0:02:12]}  Nf4 {[%clk 0:02:17]} 19. h4 {[%clk 0:02:12]}  f5 {[%clk 0:02:06]} 20. gxf6 {[%clk 0:02:03]}  Bxf6 {[%clk 0:01:59]} 21. c3 {[%clk 0:01:59]}  b4 {[%clk 0:01:44]} 22. cxb4 {[%clk 0:01:55]}  Qe8 {[%clk 0:01:17]} 23. Na5 {[%clk 0:01:30]}  Qg6+ {[%clk 0:01:13]} 24. Ka1 {[%clk 0:01:30]}  Rc2 {[%clk 0:01:07]} 25. Be6+ {[%clk 0:01:29]}  Nxe6 {[%clk 0:01:03]} 26. Rxg6 {[%clk 0:01:29]}  Rxd2 {[%clk 0:01:02]} 27. Rxd2 {[%clk 0:01:25]}  hxg6 {[%clk 0:00:47]} 28. dxe6 {[%clk 0:01:25]}  e4 {[%clk 0:00:42]} 29. fxe4 {[%clk 0:00:53]}  Bxb2+ {[%clk 0:00:27]} 30. Kb1 {[%clk 0:00:53]}  Rf1+ {[%clk 0:00:26]} 31. Kc2 {[%clk 0:00:52]}  Be5 {[%clk 0:00:19]} 32. Kb3 {[%clk 0:00:45]}  Nc3 {[%clk 0:00:17]} 33. Nc4 {[%clk 0:00:42]}  Rb1+ {[%clk 0:00:14]} 34. Kc2 {[%clk 0:00:40]}  Rxb4 {[%clk 0:00:09]} 35. Nxe5 {[%clk 0:00:39]}  dxe5 {[%clk 0:00:08]} 36. Kxc3 {[%clk 0:00:39]}  Rxe4 {[%clk 0:00:08]} 37. Rd8+ {[%clk 0:00:39]}  Kh7 {[%clk 0:00:08]} 38. Bg5 {[%clk 0:00:39]} 1-0


[Site "https://www.chess.com"]

[Event "Titled Tuesday Blitz October 19 2021"]
[White "Ghimpu, Samuel-Timotei"]
[Black "Papasimakopoulos, Alexandros"]
[WhiteFideId "1238175"]
[BlackFideId "4244125"]
[WhiteElo "2012"]
[BlackElo "2352"]
[Result "1-0"]
[Round "07"]
[TimeControl "180+1"]
[Date "2021.10.19"]
[WhiteClock "0:01:40"]
[BlackClock "0:01:18"]

1. b3 {[%clk 0:02:51]}  e5 {[%clk 0:02:27]} 2. Bb2 {[%clk 0:02:51]}  Nc6 {[%clk 0:02:27]} 3. e3 {[%clk 0:02:51]}  Nf6 {[%clk 0:02:27]} 4. c4 {[%clk 0:02:52]}  d5 {[%clk 0:02:27]} 5. cxd5 {[%clk 0:02:52]}  Nxd5 {[%clk 0:02:28]} 6. a3 {[%clk 0:02:51]}  Be6 {[%clk 0:02:28]} 7. Qc2 {[%clk 0:02:50]}  Be7 {[%clk 0:02:28]} 8. Nf3 {[%clk 0:02:51]}  f6 {[%clk 0:02:27]} 9. Bb5 {[%clk 0:02:43]}  Bd7 {[%clk 0:02:20]} 10. O-O {[%clk 0:02:17]}  a6 {[%clk 0:02:20]} 11. Bc4 {[%clk 0:02:14]}  Nb6 {[%clk 0:02:15]} 12. Bd3 {[%clk 0:02:14]}  g6 {[%clk 0:02:04]} 13. h3 {[%clk 0:02:11]}  Be6 {[%clk 0:02:00]} 14. Rd1 {[%clk 0:02:06]}  Qd7 {[%clk 0:02:00]} 15. Bf1 {[%clk 0:02:06]}  O-O-O {[%clk 0:01:55]} 16. d4 {[%clk 0:01:56]}  exd4 {[%clk 0:01:54]} 17. Nxd4 {[%clk 0:01:57]}  Nxd4 {[%clk 0:01:53]} 18. Bxd4 {[%clk 0:01:57]}  Bc5 {[%clk 0:01:40]} 19. Qxc5 {[%clk 0:01:46]}  Bxb3 {[%clk 0:01:38]} 20. Rc1 {[%clk 0:01:43]}  Kb8 {[%clk 0:01:36]} 21. Nd2 {[%clk 0:01:42]}  Be6 {[%clk 0:01:31]} 22. Rab1 {[%clk 0:01:41]}  Qa4 {[%clk 0:01:18]} 23. Qxc7+ {[%clk 0:01:40]} 1-0


[Site "https://www.chess.com"]

[Event "Titled Tuesday Blitz October 19 2021"]
[White "Goltsev, Dmitry"]
[Black "Yilmaz, Mustafa"]
[WhiteFideId "24176710"]
[BlackFideId "6302718"]
[WhiteElo "2334"]
[BlackElo "2518"]
[Result "0-1"]
[Round "07"]
[TimeControl "180+1"]
[Date "2021.10.19"]
[WhiteClock "0:00:02"]
[BlackClock "0:00:41"]

1. e4 {[%clk 0:02:59]}  e5 {[%clk 0:02:58]} 2. Nf3 {[%clk 0:02:59]}  Nc6 {[%clk 0:02:59]} 3. Bb5 {[%clk 0:02:59]}  a6 {[%clk 0:02:59]} 4. Ba4 {[%clk 0:03:00]}  Nf6 {[%clk 0:02:59]} 5. O-O {[%clk 0:03:00]}  Be7 {[%clk 0:02:59]} 6. Re1 {[%clk 0:03:00]}  b5 {[%clk 0:03:00]} 7. Bb3 {[%clk 0:03:00]}  O-O {[%clk 0:03:00]} 8. c3 {[%clk 0:03:00]}  d5 {[%clk 0:03:00]} 9. d4 {[%clk 0:02:41]}  Nxe4 {[%clk 0:02:56]} 10. Nxe5 {[%clk 0:02:36]}  Nxe5 {[%clk 0:02:54]} 11. dxe5 {[%clk 0:02:37]}  Bc5 {[%clk 0:02:38]} 12. Be3 {[%clk 0:02:33]}  Bxe3 {[%clk 0:02:21]} 13. Rxe3 {[%clk 0:02:31]}  c6 {[%clk 0:02:16]} 14. Nd2 {[%clk 0:02:31]}  Nxd2 {[%clk 0:01:58]} 15. Qxd2 {[%clk 0:02:30]}  Bf5 {[%clk 0:01:59]} 16. Bc2 {[%clk 0:02:18]}  Qd7 {[%clk 0:01:59]} 17. Bxf5 {[%clk 0:02:16]}  Qxf5 {[%clk 0:01:58]} 18. Qd3 {[%clk 0:02:16]}  Qxd3 {[%clk 0:01:55]} 19. Rxd3 {[%clk 0:02:17]}  Rfe8 {[%clk 0:01:54]} 20. f4 {[%clk 0:02:17]}  f6 {[%clk 0:01:54]} 21. exf6 {[%clk 0:02:16]}  gxf6 {[%clk 0:01:54]} 22. a4 {[%clk 0:02:06]}  Kf7 {[%clk 0:01:46]} 23. Rh3 {[%clk 0:02:02]}  Kg6 {[%clk 0:01:46]} 24. Rg3+ {[%clk 0:02:02]}  Kf5 {[%clk 0:01:46]} 25. Rh3 {[%clk 0:02:01]}  Re2 {[%clk 0:01:42]} 26. axb5 {[%clk 0:01:54]}  cxb5 {[%clk 0:01:42]} 27. Rxh7 {[%clk 0:01:53]}  Rg8 {[%clk 0:01:38]} 28. g3 {[%clk 0:01:50]}  Rge8 {[%clk 0:01:37]} 29. Rh5+ {[%clk 0:01:40]}  Kg4 {[%clk 0:01:34]} 30. Rh4+ {[%clk 0:01:36]}  Kf5 {[%clk 0:01:33]} 31. Rh5+ {[%clk 0:01:36]}  Kg6 {[%clk 0:01:30]} 32. Rxd5 {[%clk 0:01:35]}  Rxb2 {[%clk 0:01:30]} 33. Rd3 {[%clk 0:00:57]}  a5 {[%clk 0:01:26]} 34. h4 {[%clk 0:00:43]}  Kh5 {[%clk 0:01:16]} 35. c4 {[%clk 0:00:21]}  bxc4 {[%clk 0:01:10]} 36. Rxa5+ {[%clk 0:00:21]}  Kg4 {[%clk 0:01:11]} 37. Rd1 {[%clk 0:00:21]}  Ree2 {[%clk 0:01:04]} 38. Ra3 {[%clk 0:00:09]}  Rg2+ {[%clk 0:01:02]} 39. Kh1 {[%clk 0:00:09]}  Rh2+ {[%clk 0:00:59]} 40. Kg1 {[%clk 0:00:09]}  Rhc2 {[%clk 0:00:54]} 41. Kh1 {[%clk 0:00:05]}  c3 {[%clk 0:00:52]} 42. Kg1 {[%clk 0:00:03]}  Kh3 {[%clk 0:00:48]} 43. g4 {[%clk 0:00:03]}  Kxg4 {[%clk 0:00:43]} 44. f5 {[%clk 0:00:02]}  Kxh4 {[%clk 0:00:42]} 45. Rf1 {[%clk 0:00:02]}  Kg3 {[%clk 0:00:41]} 0-1


[Site "https://www.chess.com"]

[Event "Titled Tuesday Blitz October 19 2021"]
[White "Jaracz, Pawel"]
[Black "Indjic, Aleksandar"]
[WhiteFideId "1102222"]
[BlackFideId "911925"]
[WhiteElo "2495"]
[BlackElo "2643"]
[Result "1/2-1/2"]
[Round "07"]
[TimeControl "180+1"]
[Date "2021.10.19"]
[WhiteClock "0:00:02"]
[BlackClock "0:00:06"]

1. e4 {[%clk 0:02:57]}  e5 {[%clk 0:02:59]} 2. Nf3 {[%clk 0:02:57]}  Nc6 {[%clk 0:02:59]} 3. Bb5 {[%clk 0:02:57]}  a6 {[%clk 0:02:59]} 4. Ba4 {[%clk 0:02:58]}  Bc5 {[%clk 0:02:56]} 5. d3 {[%clk 0:02:48]}  Nge7 {[%clk 0:02:54]} 6. O-O {[%clk 0:02:46]}  Ng6 {[%clk 0:02:53]} 7. c3 {[%clk 0:02:45]}  Ba7 {[%clk 0:02:53]} 8. Re1 {[%clk 0:02:42]}  d6 {[%clk 0:02:51]} 9. Bg5 {[%clk 0:02:27]}  f6 {[%clk 0:02:48]} 10. Be3 {[%clk 0:02:27]}  Bxe3 {[%clk 0:02:46]} 11. fxe3 {[%clk 0:02:25]}  O-O {[%clk 0:02:46]} 12. Nbd2 {[%clk 0:02:25]}  Kh8 {[%clk 0:02:43]} 13. Rf1 {[%clk 0:02:24]}  Nce7 {[%clk 0:02:42]} 14. Rf2 {[%clk 0:02:21]}  Ng8 {[%clk 0:02:41]} 15. Nf1 {[%clk 0:02:21]}  Nh6 {[%clk 0:02:41]} 16. h3 {[%clk 0:02:20]}  c6 {[%clk 0:02:39]} 17. Ng3 {[%clk 0:02:17]}  Be6 {[%clk 0:02:38]} 18. Bb3 {[%clk 0:02:16]}  d5 {[%clk 0:02:37]} 19. exd5 {[%clk 0:02:13]}  cxd5 {[%clk 0:02:38]} 20. d4 {[%clk 0:02:10]}  e4 {[%clk 0:02:37]} 21. Nd2 {[%clk 0:02:10]}  f5 {[%clk 0:02:36]} 22. Ne2 {[%clk 0:02:10]}  b5 {[%clk 0:02:24]} 23. a4 {[%clk 0:02:07]}  Qd6 {[%clk 0:02:16]} 24. Qf1 {[%clk 0:01:47]}  Ne7 {[%clk 0:02:12]} 25. Nf4 {[%clk 0:01:42]}  Bf7 {[%clk 0:02:09]} 26. axb5 {[%clk 0:01:41]}  axb5 {[%clk 0:02:07]} 27. Rxa8 {[%clk 0:01:41]}  Rxa8 {[%clk 0:02:07]} 28. Qxb5 {[%clk 0:01:40]}  g5 {[%clk 0:02:04]} 29. Ne2 {[%clk 0:01:36]}  f4 {[%clk 0:02:05]} 30. Nf1 {[%clk 0:01:23]}  Nef5 {[%clk 0:02:04]} 31. exf4 {[%clk 0:01:21]}  g4 {[%clk 0:02:03]} 32. Nfg3 {[%clk 0:01:04]}  gxh3 {[%clk 0:02:01]} 33. gxh3 {[%clk 0:00:56]}  e3 {[%clk 0:01:50]} 34. Rf3 {[%clk 0:00:43]}  Qe6 {[%clk 0:01:15]} 35. Qb7 {[%clk 0:00:36]}  Rg8 {[%clk 0:01:09]} 36. Kh2 {[%clk 0:00:37]}  Nh4 {[%clk 0:01:09]} 37. Rf1 {[%clk 0:00:35]}  N6f5 {[%clk 0:01:05]} 38. Qc7 {[%clk 0:00:34]}  Bh5 {[%clk 0:00:55]} 39. Qe5+ {[%clk 0:00:19]}  Qxe5 {[%clk 0:00:54]} 40. fxe5 {[%clk 0:00:20]}  Bxe2 {[%clk 0:00:53]} 41. Rxf5 {[%clk 0:00:16]}  Rxg3 {[%clk 0:00:39]} 42. Rf8+ {[%clk 0:00:15]}  Rg8 {[%clk 0:00:38]} 43. Rxg8+ {[%clk 0:00:16]}  Kxg8 {[%clk 0:00:38]} 44. Bxd5+ {[%clk 0:00:16]}  Kf8 {[%clk 0:00:38]} 45. Kg3 {[%clk 0:00:17]}  Bh5 {[%clk 0:00:36]} 46. Bc4 {[%clk 0:00:14]}  Ng6 {[%clk 0:00:30]} 47. b4 {[%clk 0:00:09]}  Ke7 {[%clk 0:00:28]} 48. b5 {[%clk 0:00:09]}  Kd7 {[%clk 0:00:27]} 49. Bd3 {[%clk 0:00:09]}  e2 {[%clk 0:00:26]} 50. Kf2 {[%clk 0:00:05]}  Nf4 {[%clk 0:00:27]} 51. Bf5+ {[%clk 0:00:06]}  Kc7 {[%clk 0:00:26]} 52. Bg4 {[%clk 0:00:06]}  Bxg4 {[%clk 0:00:07]} 53. hxg4 {[%clk 0:00:06]}  h6 {[%clk 0:00:07]} 54. c4 {[%clk 0:00:06]}  Kb6 {[%clk 0:00:07]} 55. d5 {[%clk 0:00:06]}  Nd3+ {[%clk 0:00:05]} 56. Kxe2 {[%clk 0:00:06]}  Nxe5 {[%clk 0:00:06]} 57. Ke3 {[%clk 0:00:05]}  Nxc4+ {[%clk 0:00:05]} 58. Kf4 {[%clk 0:00:02]}  Kc5 {[%clk 0:00:05]} 59. g5 {[%clk 0:00:01]}  hxg5+ {[%clk 0:00:05]} 60. Kxg5 {[%clk 0:00:02]}  Kxd5 {[%clk 0:00:06]} 61. b6 {[%clk 0:00:02]}  Nxb6 {[%clk 0:00:06]} 1/2-1/2


[Site "https://www.chess.com"]